[Event "Silves Open 2025"]
[Site "Fissul"]
[Date "2025.03.05"]
[Round "6.6"]
[White "Goncalves, Samuel Jesus P"]
[Black "Khamrakulov, Ibragim S."]
[Result "0-1"]
[Annotator "TA"]
[ECO "A37"]
[WhiteElo "2280"]
[BlackElo "2384"]
[PlyCount "64"]
[EventDate "2025.03.03"]
[EventType "swiss"]
[EventCountry "POR"]
[SourceTitle "playchess.com"]
[Source "ChessBase"]
[SourceQuality "1"]
[TimeControl "5400+30"]

{[%evp 12,64,2,5,15,8,8,-5,25,23,48,6,12,0,7,-17,0,0,0,-28,-29,-37,-21,-116,-113,-111,-109,-174,-158,-186,-193,-221,-168,-254,-225,-244,-234,-316,-307,-411,-301,-308,-306,-334,-257,-358,-316,-390,-388,-371,-364,-481,-462,-445,-296]} 1. c4 {[%emt 0:01:50]} c5 {[%emt 0:08:01]} 2. g3 {[%emt 0:00:07]} Nc6 {[%emt 0:00:16]} 3. Bg2 {[%emt 0:00:11]} g6 {[%emt 0:00:22]} 4. Nc3 {[%emt 0:00:05]} Bg7 {[%emt 0:00:04]} 5. Nf3 {[%emt 0:00:12]} e5 {[%emt 0:01:49]} 6. a3 {[%emt 0:01:03]} a5 {[%emt 0:00:53]} 7. d3 {[%emt 0:03:07] outshines the older 7.0-0.} Nge7 {[%emt 0:00:12] A37: Symmetrical English vs ...g6: 4 Bg2 Bg7 5 Nf3.} 8. O-O {[%emt 0:00:20]} O-O {[%emt 0:00:08]} 9. Ne1 {[%emt 0:00:25]} Rb8 {[%emt 0:01:07] The position is equal.} 10. Nc2 {[%emt 0:01:07]} Nd4 {[%emt 0:01:04]} 11. Nxd4 {[%emt 0:17:31]} cxd4 $146 {[%emt 0:08:23]} (11... exd4 12. Nb5 d6 13. Bg5 h6 14. Bf4 Nf5 15. b4 g5 16. Bd2 Bd7 17. Rb1 axb4 18. axb4 {1-0 Kouskoutis,G (2136)-Skalkotas,N (2114) Nikaia op 24th 2016 (6)}) 12. Nb5 {[%emt 0:00:10]} d5 {[%emt 0:00:18]} 13. e3 {[%emt 0:06:55]} dxe3 {[%emt 0:24:29]} 14. Bxe3 {[%emt 0:00:08]} Bd7 {[%emt 0:00:53]} 15. Ba7 {[%emt 0:27:58]} Rc8 {[%emt 0:10:52] [#] ...Bxb5 is the strong threat.} 16. Nd6 {[%emt 0:04:58]} (16. Bxd5 $2 Nxd5 17. Nd6 Ra8 $19) 16... Ra8 {[%emt 0:05:15]} 17. Nxb7 {[%emt 0:10:26]} (17. Be3 $11 {keeps the balance.}) 17... Qc7 $17 {[%emt 0:00:32] White is now going downhill.} 18. Bc5 {[%emt 0:00:03]} Bc8 {[%emt 0:00:09]} 19. cxd5 {[%emt 0:02:11]} Qxb7 $19 {[%emt 0:11:04]} (19... Bxb7 20. Rc1 $11) 20. d6 {[%emt 0:06:17]} Nc6 {[%emt 0:01:43][%cal Ob7b5]} 21. b4 {[%emt 0:00:03]} Bd7 {[%emt 0:00:27][%cal Ra5b4]} 22. Rb1 {[%emt 0:01:03]} (22. Qb3 $142) 22... axb4 {[%emt 0:00:32]} 23. axb4 {[%emt 0:00:19]} Qb5 {[%emt 0:00:21]} 24. Qb3 {[%emt 0:01:12]} Be6 {[%emt 0:00:45]} 25. Bd5 {[%emt 0:00:30] [#]} Nxb4 $1 {[%emt 0:03:29][%mdl 512]} 26. Bxe6 {[%emt 0:08:21][%cal Of1c1] Threatens to win with Rfc1!.} Qxc5 {[%emt 0:00:10]} 27. Bc4 {[%emt 0:00:15]} Nc6 {[%emt 0:01:02]} 28. d7 {[%emt 0:00:13]} Qd6 {[%emt 0:00:16]} 29. Rfc1 {[%emt 0:03:44]} Rad8 {[%emt 0:01:40]} ({But not} 29... Qxd7 30. Bb5 Rfc8 31. Qc4 $19) 30. Qb6 {[%emt 0:00:51]} Rxd7 {[%emt 0:00:06]} ({Worse is} 30... Qxd7 31. Bb5 $11) 31. Bb5 {[%emt 0:01:03]} Nd4 {[%emt 0:00:12]} 32. Bxd7 {[%emt 0:00:08]} Qxb6 {[%emt 0:00:05] Weighted Error Value: White=0.47/Black=0.18 (very precise)   Mistake:       	White=3     	---        Inaccurate:     	White=6     	Black=2      OK:         	White=5     	Black=12     Best:        	---       	Black=3} 0-1

[Event "Silves Open 2025"]
[Site "Fissul"]
[Date "2025.03.05"]
[Round "6.7"]
[White "Sanz Wawer, Daniel"]
[Black "Rasti, Arvin"]
[Result "1-0"]
[Annotator "RC"]
[ECO "B68"]
[WhiteElo "2283"]
[BlackElo "2232"]
[PlyCount "28"]
[EventDate "2025.03.03"]
[EventType "swiss"]
[EventCountry "POR"]
[SourceTitle "playchess.com"]
[Source "ChessBase"]
[SourceQuality "1"]
[TimeControl "5400+30"]

1. e4 {[%emt 0:01:13]} c5 {[%emt 0:00:07]} 2. Nf3 {[%emt 0:00:05]} d6 {[%emt 0:00:15]} 3. d4 {[%emt 0:00:03]} cxd4 {[%emt 0:00:06]} 4. Nxd4 {[%emt 0:00:04]} Nf6 {[%emt 0:00:13]} 5. Nc3 {[%emt 0:00:04]} Nc6 {[%emt 0:00:04]} 6. Bg5 {[%emt 0:00:04]} e6 {[%emt 0:00:07]} 7. Qd2 {[%emt 0:00:16]} a6 {[%emt 0:00:08]} 8. O-O-O {[%emt 0:00:12]} Bd7 {[%emt 0:00:03]} 9. f4 {[%emt 0:00:14]} Be7 {[%emt 0:00:08]} 10. Kb1 {[%emt 0:02:43]} b5 {[%emt 0:02:01]} 11. Bxf6 {[%emt 0:06:45]} gxf6 {[%emt 0:00:18]} 12. f5 {[%emt 0:06:19]} Qb6 {[%emt 0:01:37]} 13. Nce2 {[%emt 0:09:00]} h5 {[%emt 0:16:41]} 14. Nxc6 {[%emt 0:04:41]} Qxc6 {[%emt 0:01:58]} 1-0

[Event "Silves Open 2025"]
[Site "Fissul"]
[Date "2025.03.05"]
[Round "6.8"]
[White "Vasques, Antonio Pedro Freixi"]
[Black "Santos, Antonio P"]
[Result "1-0"]
[Annotator "TA"]
[ECO "B23"]
[WhiteElo "2246"]
[BlackElo "2209"]
[PlyCount "65"]
[EventDate "2025.03.03"]
[EventType "swiss"]
[EventCountry "POR"]
[SourceTitle "playchess.com"]
[Source "ChessBase"]
[SourceQuality "1"]
[TimeControl "5400+30"]

{[%evp 9,65,11,22,17,30,22,25,16,23,0,0,0,46,54,52,53,75,77,169,175,166,174,222,217,227,225,224,223,245,245,272,227,245,221,215,185,206,202,228,237,211,201,285,280,368,362,589,581,562,551,500,459,461,456,443,425,506,491]} 1. e4 {[%emt 0:03:36]} c5 {[%emt 0:00:00]} 2. Nc3 {[%emt 0:00:24]} Nc6 {[%emt 0:00:12]} 3. Bb5 {[%emt 0:00:05]} Nd4 {[%emt 0:01:33]} 4. Nf3 {[%emt 0:00:05]} a6 {[%emt 0:00:14]} 5. Bd3 {[%emt 0:00:05]} Nc6 {[%emt 0:02:06]} 6. O-O {[%emt 0:02:10] B23: Closed Sicilian: Lines without g3.} e5 {[%emt 0:08:15]} 7. Bc4 {[%emt 0:15:29]} Be7 {[%emt 0:01:37]} 8. d3 {[%emt 0:03:05][%cal Of3g5] White has an edge.} d6 {[%emt 0:02:43]} 9. Ng5 {[%emt 0:11:45]} Bxg5 10. Qh5 {[%emt 0:00:30][%csl Gc4,LRf7,LRg5][%cal Rh5f7] [#]} g6 {A sharp opening} (10... Be7 $11 {should be considered.} 11. Qxf7+ Kd7 12. Be6+ Kc7 13. Nd5+ Kb8 14. Bxc8 Kxc8 (14... Qxc8 $2 {is the wrong capture.} 15. Qxg7 $18)) 11. Qxg5 $14 {[%emt 0:00:30] White attacks} Qxg5 12. Bxg5 {[%emt 0:00:30]} h6 13. Nd5 $146 {[%emt 0:00:30][%cal Bc3d5,Bd5c7,Bc7a8,Ba8b6][%mdl 32] White is much more active. White stays focused until the end.} (13. Bd2 Be6 14. Nd5 Bxd5 15. Bxd5 Nge7 16. f4 Rd8 17. Bb3 Rh7 18. fxe5 dxe5 {½-½ Tseitlin,M (2465)-Sermek,D (2515) Groningen op 1994 (9)}) 13... hxg5 (13... Rb8 $16 14. Be3 f5) 14. Nc7+ $18 {[%emt 0:00:30]} Ke7 15. Nxa8 {[%emt 0:00:30]} Nd4 (15... b5 $142) 16. Nb6 {[%emt 0:00:30]} Be6 17. c3 {[%emt 0:00:30]} Ne2+ 18. Kh1 {[%emt 0:00:30] [#]} Nf4 {[%cal Be2f4,Bf4h3,Bh3g5][%mdl 32]} 19. g3 {[%emt 0:00:30]} Nh3 20. Kg2 {[%emt 0:00:30]} g4 21. Bxe6 {[%emt 0:00:30]} Kxe6 22. f4 {[%emt 0:00:30]} gxf3+ 23. Rxf3 {[%emt 0:00:30]} f5 24. Nd5 {[%emt 0:00:30]} Ng5 25. Re3 {[%emt 0:00:30]} Nh3 (25... Nh6 $142 26. h4 Nh7) 26. Rf1 {[%emt 0:00:30]} Nf6 27. g4 {[%emt 0:00:30]} Nf4+ $2 (27... Ng5) 28. Nxf4+ {[%emt 0:00:30] White is clearly winning.} exf4 29. exf5+ {[%emt 0:00:30]} Kd7 30. Rxf4 {[%emt 0:00:30]} Nd5 31. Ref3 {[%emt 0:00:30][%cal Of5g6] Strongly threatening fxg6!.} Nxf4+ 32. Rxf4 {[%emt 0:00:30]} gxf5 33. Rxf5 {[%emt 0:00:30] Weighted Error Value: White=0.10 (very precise) /Black=0.35  Mistake:       	---       	Black=5      Inaccurate:     	---       	Black=1      OK:         	White=10    	Black=10     Best:        	White=5     	---} 1-0

[Event "Silves Open 2025"]
[Site "Fissul"]
[Date "2025.03.05"]
[Round "6.9"]
[White "Monteiro, Paulo Alexandre G"]
[Black "Ryabukhin, Roman"]
[Result "1/2-1/2"]
[Annotator "TA"]
[ECO "E46"]
[WhiteElo "2221"]
[BlackElo "2209"]
[PlyCount "74"]
[EventDate "2025.03.03"]
[EventType "swiss"]
[EventCountry "POR"]
[SourceTitle "playchess.com"]
[Source "ChessBase"]
[SourceQuality "1"]
[TimeControl "5400+30"]

{[%evp 9,74,-2,9,0,0,0,0,0,0,-3,0,0,0,0,0,0,34,4,31,14,33,25,32,24,35,21,54,18,18,9,54,61,88,79,66,0,0,0,0,0,0,0,0,0,15,7,14,10,22,14,22,14,14,0,22,14,14,0,14,14,22,0,22,0,15,10,22]} 1. d4 {[%emt 0:05:07]} Nf6 {[%emt 0:00:06]} 2. c4 {[%emt 0:00:08]} e6 {[%emt 0:00:05]} 3. Nc3 {[%emt 0:00:08]} Bb4 {[%emt 0:00:04]} 4. e3 {[%emt 0:00:09]} O-O {[%emt 0:00:05]} 5. Bd2 {[%emt 0:00:06]} c5 {[%emt 0:00:04]} 6. a3 {[%emt 0:00:49] E46: Nimzo-Indian: Rubinstein: 4 e3 0-0 5 Ne2 without early Bd3.} Bxc3 {[%emt 0:00:06]} 7. Bxc3 {[%emt 0:00:05]} Ne4 {[%emt 0:00:02]} 8. Rc1 {[%emt 0:00:13]} b6 {[%emt 0:00:07]} 9. Bd3 {[%emt 0:00:15]} Nxc3 {[%emt 0:00:31]} 10. Rxc3 {[%emt 0:00:08]} Bb7 {[%emt 0:00:28]} 11. Nf3 {[%emt 0:00:17][%cal Bg1f3,Bf3d2,Bd2c4][%mdl 32]} d6 {[%emt 0:18:17]} 12. d5 {[%emt 0:05:31]} a6 $146 {[%emt 0:02:56]} ({Predecessor:} 12... exd5 13. cxd5 Nd7 14. e4 b5 15. Bxb5 Re8 16. Nd2 Bxd5 17. O-O Bxe4 18. Re1 Bb7 19. Rxe8+ Qxe8 {1-0 Jarmula,L (2429)-Sutormin,D (2431) Pozarevac Rudar GM2 12 2024 (3)}) 13. e4 {[%emt 0:00:30]} b5 {[%emt 0:00:30]} 14. O-O {[%emt 0:00:30]} bxc4 {[%emt 0:00:30]} 15. Bxc4 {[%emt 0:00:30]} e5 {[%emt 0:00:30]} 16. Nd2 {[%emt 0:00:30]} Nd7 {[%emt 0:00:30]} 17. Be2 {[%emt 0:00:30]} f5 {[%emt 0:00:30]} 18. f3 {[%emt 0:00:30]} f4 {[%emt 0:00:30]} 19. Nc4 {[%emt 0:00:30]} Rf6 {[%emt 0:00:30]} 20. b4 {[%emt 0:00:30]} cxb4 {[%emt 0:00:30]} 21. axb4 {[%emt 0:00:30]} a5 {[%emt 0:00:30]} 22. bxa5 {[%emt 0:00:30] White is more active.} (22. b5 $1 $14) 22... Ba6 $11 {[%emt 0:00:30] The position is equal.} 23. Nb6 {[%emt 0:00:30]} Nxb6 {[%emt 0:00:30]} 24. axb6 {[%emt 0:00:30]} Qxb6+ {[%emt 0:00:30]} 25. Kh1 {[%emt 0:00:30]} Bxe2 {[%emt 0:00:30]} 26. Qxe2 {[%emt 0:00:30]} Qa5 {[%emt 0:00:30]} 27. Qc2 {[%emt 0:00:30]} h6 {[%emt 0:00:30]} 28. h3 {[%emt 0:00:30]} Rg6 {[%emt 0:00:30]} 29. Rc1 {[%emt 0:00:30]} Kh7 {[%emt 0:00:30]} 30. Rc6 {[%emt 0:00:30]} Rb8 {[%emt 0:00:30]} 31. Rc3 {[%emt 0:00:30]} Qb4 {[%emt 0:00:30]} 32. Rc4 {[%emt 0:00:30]} Qa3 {[%emt 0:00:30] [#] And now ...Rb2 would win.} 33. Rc3 {[%emt 0:00:30]} Qa5 {[%emt 0:00:30]} 34. Rc6 {[%emt 0:00:30]} Qb4 {[%emt 0:00:30]} 35. Rc4 {[%emt 0:00:30]} Qb6 {[%emt 0:00:30]} 36. Rc6 {[%emt 0:00:30]} Qe3 {[%emt 0:00:30]} 37. Rc3 {[%emt 0:00:30]} Qb6 {[%emt 0:00:30] Weighted Error Value: White=0.11 (very precise) /Black=0.09 (flawless)   Mistake:       	White=1     	---        Inaccurate:     	White=2     	Black=4      OK:         	White=6     	Black=13     Best:        	White=1     	Black=1} 1/2-1/2

[Event "Silves Open 2025"]
[Site "Fissul"]
[Date "2025.03.04"]
[Round "6.10"]
[White "Kuegel, Tobias"]
[Black "Paiva, Manuel Maria Fonseca"]
[Result "1-0"]
[Annotator "TA"]
[ECO "B21"]
[WhiteElo "2423"]
[BlackElo "1904"]
[PlyCount "41"]
[EventDate "2025.03.03"]
[EventType "swiss"]
[EventCountry "POR"]
[SourceTitle "playchess.com"]
[Source "ChessBase"]
[SourceQuality "1"]
[TimeControl "5400+30"]

{[%evp 9,41,5,10,0,3,-4,55,16,49,35,39,18,14,0,42,30,40,0,103,112,178,21,47,47,46,49,54,50,49,50,51,51,511,54]} 1. e4 {[%emt 0:03:18]} c5 {[%emt 1:31:00]} 2. d4 {[%emt 0:00:09]} cxd4 {[%emt 0:00:00]} 3. Qxd4 {[%emt 0:00:02]} Nc6 {[%emt 0:00:00]} 4. Qd3 {[%emt 0:00:02]} Nf6 {[%emt 0:00:00]} 5. Nc3 {[%emt 0:00:05]} e6 {[%emt 0:00:00]} 6. Bf4 {[%emt 0:00:11] B21: Sicilian: 2 f4 and Morra Gambit.} a6 {[%emt 0:00:00]} 7. O-O-O {[%emt 0:00:59]} Bb4 {[%emt 0:00:00]} (7... b5 $11) 8. Nge2 {[%emt 0:02:29] White is slightly better.} Qa5 {[%emt 0:00:00]} 9. Kb1 {[%emt 0:05:31]} O-O {[%emt 0:00:00][%cal Od7d5]} 10. f3 {[%emt 0:00:04]} d5 {[%emt 0:00:00]} 11. exd5 {[%emt 0:00:23]} exd5 {[%emt 0:00:00]} 12. a3 {[%emt 0:12:06]} (12. Nxd5 $2 Nxd5 13. Bg5 (13. Qxd5 $2 Rd8 $19) 13... Nb6 $19) 12... Be7 {[%emt 0:00:00]} 13. g4 $146 {[%emt 0:05:22][%cal Og4g5]} (13. Nxd5 $2 Nxd5 14. Bd2 (14. Qxd5 $2 Rd8 $19) 14... Qc5 $19) (13. Nxd5 Nxd5 14. Qxd5 Rd8 15. Ng1 {0-1 Poschadel,A (1809)-Braun,I (2050) Vellmar op 11th 2019 (5)}) 13... d4 14. Nxd4 $16 {[%emt 0:00:30]} Rd8 (14... Nxd4 $16 {is a better defense.} 15. Qxd4 h5) 15. Qe3 $2 {[%emt 0:00:30]} ({Better is} 15. Nxc6 $18 bxc6 16. Qxd8+ Qxd8 (16... Bxd8 $2 17. b4 $18) 17. Rxd8+ Bxd8 18. Bc4) 15... Nd5 16. Nxd5 {[%emt 0:00:30]} Qxd5 {[#]} 17. Bc4 $1 {[%emt 0:00:30]} Qxc4 18. Nxc6 {[%emt 0:00:30]} Qxc6 ({Avoid the trap} 18... Rxd1+ $2 19. Rxd1 Qxc6 (19... bxc6 20. Rd8+ Bf8 21. Rxf8+ Kxf8 22. Bd6+ Kg8 23. Qe8#) 20. Qxe7 $18) 19. Qxe7 {[%emt 0:00:30]} Re8 {Black is weak on the dark squares} 20. Rd8 {[%emt 0:00:30]} Bd7 {[%mdl 8192] [#]} 21. Rxa8 $2 {[%emt 0:00:00] Weighted Error Value: White=0.27 (precise) /Black=0.67  Loses game:     	---       	Black=1      Missed win:     	White=1     	---        Mistake:       	White=1     	Black=3      Inaccurate:     	White=2     	Black=3      OK:         	White=5     	Black=5      Best:        	White=2     	---        Brilliant:      	White=1     	---} (21. Rxd7 $2 {too greedy.} Rxe7 (21... Qxf3 22. Qxf7+ Kh8 23. Qxg7#) 22. Rxe7 Qxf3 $19) (21. Qxe8+ $1 $18 Bxe8 22. Rxa8) 1-0

[Event "Silves Open 2025"]
[Site "Fissul"]
[Date "2025.03.05"]
[Round "6.11"]
[White "Peixoto, Helio Ricardo Soutin"]
[Black "Dias, Ivo Rodrigues"]
[Result "1/2-1/2"]
[Annotator "RC"]
[ECO "B22"]
[WhiteElo "1918"]
[BlackElo "2097"]
[PlyCount "25"]
[EventDate "2025.03.03"]
[EventType "swiss"]
[EventCountry "POR"]
[SourceTitle "playchess.com"]
[Source "ChessBase"]
[SourceQuality "1"]
[TimeControl "5400+30"]

1. e4 {[%emt 0:00:06]} c5 {[%emt 0:02:27]} 2. d4 {[%emt 0:00:07]} cxd4 {[%emt 0:00:12]} 3. c3 {[%emt 0:00:05]} Nf6 {[%emt 0:04:30]} 4. e5 {[%emt 0:00:58]} Nd5 {[%emt 0:00:06]} 5. Nf3 {[%emt 0:01:15]} e6 {[%emt 0:00:38]} 6. Bc4 {[%emt 0:04:02]} Nb6 {[%emt 0:01:09]} 7. Bb3 {[%emt 0:00:20]} Nc6 {[%emt 0:00:44]} 8. O-O {[%emt 0:02:07]} d6 {[%emt 0:01:49]} 9. cxd4 {[%emt 0:01:24]} dxe5 {[%emt 0:02:19]} 10. dxe5 {[%emt 0:00:09]} Qxd1 {[%emt 0:00:18]} 11. Rxd1 {[%emt 0:00:12]} Be7 {[%emt 0:07:50]} 12. Nc3 {[%emt 0:01:27]} O-O {[%emt 0:07:06]} 13. Ne4 {[%emt 0:08:30]} 1/2-1/2

[Event "Silves Open 2025"]
[Site "Fissul"]
[Date "2025.03.05"]
[Round "6.12"]
[White "Boesel, Alexander"]
[Black "Van Ree, Thailo"]
[Result "1-0"]
[Annotator "TA"]
[ECO "B51"]
[WhiteElo "2046"]
[BlackElo "1881"]
[PlyCount "65"]
[EventDate "2025.03.03"]
[EventType "swiss"]
[EventCountry "POR"]
[SourceTitle "playchess.com"]
[Source "ChessBase"]
[SourceQuality "1"]
[TimeControl "5400+30"]

{[%evp 9,65,22,24,31,26,12,69,33,36,16,25,10,0,0,0,-10,14,0,72,83,85,77,85,83,70,45,215,3,151,150,248,187,187,187,216,175,191,55,212,164,268,76,287,136,325,335,329,333,281,-85,80,0,281,281,272,126,264,-132]} 1. e4 {[%emt 0:00:03]} c5 {[%emt 0:00:29]} 2. Nf3 {[%emt 0:00:07]} d6 {[%emt 0:00:03]} 3. Bb5+ {[%emt 0:00:07]} Nd7 {[%emt 0:00:06]} 4. O-O {[%emt 0:00:19]} a6 {[%emt 0:00:21]} 5. Bd3 {[%emt 0:00:10]} Ngf6 {[%emt 0:00:19]} 6. c3 {[%emt 0:00:20] B51: Sicilian: Moscow Variation (3 Bb5+) without 3...Bd7.} b5 {[%emt 0:00:34]} 7. a4 {[%emt 0:02:30]} c4 {[%emt 0:00:36]} (7... Bb7 $11) 8. Bc2 {[%emt 0:00:06] White is slightly better.} Bb7 {[%emt 0:01:19]} 9. Re1 {[%emt 0:03:27] 9.axb5 is the hot move.} e6 {[%emt 0:01:14]} 10. axb5 {[%emt 0:02:09]} axb5 {[%emt 0:00:52]} 11. Rxa8 {[%emt 0:00:06]} Qxa8 {[%emt 0:00:13]} 12. d3 {[%emt 0:00:08]} cxd3 {[%emt 0:03:43]} 13. Qxd3 {[%emt 0:00:10][%cal Od3e2]} Nc5 $146 {[%emt 0:07:03]} (13... b4 $11 {keeps the balance.}) (13... Nxe4 14. Qxb5 Be7 15. Nd4 Nef6 16. f3 O-O 17. Nd2 Rc8 18. Ne4 Ne5 19. Bg5 Rb8 {1-0 Ni,S (2450)-Wang,J (2335) CHN-chT China 2017 (14.1)}) 14. Qxb5+ $16 {[%emt 0:00:26]} Bc6 {[%emt 0:00:10]} 15. Qe2 {[%emt 0:12:59]} Ncxe4 {[%emt 0:00:42]} 16. Nd4 {[%emt 0:01:20]} d5 {[%emt 0:07:14]} 17. f3 Nc5 {[%emt 0:00:30]} (17... Nd6 $14) 18. Bf5 $2 (18. b4 $18) 18... Kd7 {[%emt 0:00:30]} (18... Be7 $11) 19. Bc2 $1 {White is more active.} Qa6 {[%emt 0:00:30]} (19... Bd6 $16 20. Na3 Rb8) 20. Qd1 Kc8 {[%emt 0:00:30]} 21. b4 Ncd7 {[%emt 0:00:30]} 22. Bd3 Qa8 {[%emt 0:00:30]} 23. Nb5 (23. Bf4 $18) 23... e5 $2 {[%emt 0:00:30]} ({Black should try} 23... Bxb5 $1 $14 24. Bxb5 Bd6) 24. Qe2 e4 {[%emt 0:00:30]} (24... Kd8 25. N1a3 h5) 25. Bc2 $2 (25. fxe4 $18 dxe4 26. Bc4) 25... Ne5 $2 {[%emt 0:00:30]} (25... exf3 $16 26. gxf3 Bxb5 27. Qxb5 Bd6) 26. Bf4 (26. N1a3 $18 {is more deadly.}) 26... Ng6 $2 {[%emt 0:00:30]} (26... Bxb5 $16 {was called for.} 27. Qxb5 Qa7+ 28. Be3 Qb7 29. Qxb7+ Kxb7 30. fxe4 Nxe4) 27. Bg3 $18 {and fxe4 would now be decisive} Nh5 {[%emt 0:00:30]} 28. fxe4 Nxg3 {[%emt 0:00:30]} 29. Qg4+ {[#]} (29. hxg3 $18 Bxb5 30. Qxb5) 29... f5 $2 {[%emt 0:00:30]} 30. Qxg3 ({Better is} 30. exf5 $16 Bxb5 31. fxg6+ Kc7 32. Qxg3+ Bd6 33. Qe3 (33. Re7+ Bd7 $14) 33... hxg6 34. g3) 30... Qb8 $2 {[%emt 0:00:30][%mdl 8192]} (30... Bxb5 $11 {and Black stays safe.} 31. exf5 Ne7) 31. Qxb8+ ({Don't do} 31. exf5 $6 Bxb5 32. Qxb8+ (32. fxg6 hxg6 33. Re6 Qa7+ 34. Qf2 Qxf2+ 35. Kxf2 Rxh2 $18) 32... Kxb8 $18) 31... Kxb8 {[%emt 0:00:30]} 32. exf5 (32. Nd4 $18 {and the rest is easy.} Bd7 33. exf5 (33. exd5 Nf4 $18)) 32... Ne7 {[%emt 0:00:30] [#]} (32... Bxb5 $16 33. fxg6 hxg6 34. Bxg6 Bd6) 33. g4 $2 {[%mdl 32768] Weighted Error Value: White=0.63/Black=0.85 Loss on time!?  Loses game:     	---       	Black=4      Missed win:     	White=4     	---        Mistake:       	White=4     	Black=8      Inaccurate:     	White=1     	---        OK:         	White=8     	Black=6      Best:        	White=1     	Black=3      Strong:       	White=1     	---} 1-0